fUST/lending_fUST_20241229
["ID","MTS","AMOUNT","RATE_DAILY","PERIOD"]
[346943246,1735409453505,-230.528561,0.000189,2]
[346943247,1735409453515,-500.0,0.00019094,2]
[346943248,1735409453523,-3920.48,0.00019096,2]
[346943249,1735409453533,-3486.43,0.00019096,2]
[346943250,1735409453542,-449.431259,0.00019099,2]
[346943251,1735409453552,-449.431259,0.00019099,2]
[346943252,1735409453561,-151.0,0.00019099,2]
[346943253,1735409453570,-703.907684,0.00019099,2]
[346943254,1735409453579,-703.907684,0.00019099,2]
[346943255,1735409453588,-151.0,0.00019099,2]
[346943256,1735409453598,-403.766938,0.00019099,2]
[346943257,1735409453607,-403.766938,0.00019099,2]
[346943258,1735409453616,-477.146927,0.00019099,2]
[346943259,1735409453626,-477.146927,0.00019099,2]
[346943260,1735409453635,-248.363047,0.00019099,2]
[346943261,1735409453644,-248.363047,0.00019099,2]
[346943262,1735409453654,-664.2,0.00019103,2]
[346943263,1735409453663,-523.87,0.00019104,2]
[346943264,1735409453673,-151.0,0.00019168,2]
[346943265,1735409453682,-828.666108,0.00019168,2]
[346943266,1735409453691,-828.666108,0.00019168,2]
[346943267,1735409453700,-224.585074,0.00019168,2]
[346943268,1735409453710,-198.53652378,0.00019171,2]
[346943269,1735409453719,-500.0,0.00019178,6]
[346943270,1735409453729,-479.41864088,0.00019253,2]
[346943271,1735409453738,-500.0,0.00019368,2]
[346943272,1735409453747,-3920.48,0.0001937,2]
[346943273,1735409453757,-3486.43,0.0001937,2]
[346943274,1735409453766,-151.0,0.00019376,2]
[346943275,1735409453776,-151.0,0.00019376,2]
[346943276,1735409453786,-664.2,0.00019376,2]
[346943277,1735409453795,-523.87,0.00019378,2]
[346943278,1735409453804,-803.087,0.0001938,2]
[346943279,1735409453815,-678.3870823,0.00019534,2]
[346943280,1735409453824,-349.6501227,0.00019562,2]
[346943281,1735409453833,-704.6473112,0.00019562,2]
[346943282,1735409453843,-8706.42496922,0.00019628,2]
[346943283,1735409453853,-455.14,0.00019642,2]
[346943284,1735409453863,-3920.48,0.00019644,2]
[346943285,1735409453873,-246.538878,0.00019644,2]
[346943286,1735409453882,-246.538878,0.00019644,2]
[346943287,1735409453891,-1289.799582,0.00019644,2]
[346943288,1735409453900,-151.0,0.00019644,2]
[346943289,1735409453909,-1289.799582,0.00019644,2]
[346943290,1735409453918,-151.0,0.00019644,2]
[346943291,1735409453927,-3486.43,0.00019644,2]
[346943292,1735409453937,-151.0,0.00019644,2]
[346943293,1735409453946,-151.0,0.00019647,2]
[346943294,1735409453955,-151.0,0.00019647,2]
[346943295,1735409453965,-621.733577,0.00019647,2]
[346943296,1735409453974,-750.068438,0.00019647,2]
[346943297,1735409453983,-161.124515,0.00019647,2]
[346943298,1735409453992,-621.733577,0.00019647,2]
[346943299,1735409454002,-750.068438,0.00019647,2]
[346943300,1735409454011,-161.124515,0.00019647,2]
[346943301,1735409454020,-196.742415,0.00019647,2]
[346943302,1735409454029,-196.742415,0.00019647,2]
[346943303,1735409454038,-151.0,0.0001965,2]
[346943304,1735409454048,-664.2,0.0001965,2]
[346943305,1735409454057,-523.87,0.00019652,2]
[346943306,1735409454067,-157.433088,0.00019699,2]
[346943307,1735409454076,-156.1177245,0.00019699,2]
[346943308,1735409454086,-306.0,0.00019699,2]
[346943309,1735409454095,-428.2180589,0.00019699,2]
[346943310,1735409454111,-153.0,0.00019699,2]
[346943311,1735409454120,-3920.48,0.00019918,2]
[346943312,1735409454130,-3486.43,0.00019918,2]
[346943313,1735409454139,-477.146927,0.00019921,2]
[346943314,1735409454149,-477.146927,0.00019921,2]
[346943315,1735409454158,-248.363047,0.00019921,2]
[346943316,1735409454168,-248.363047,0.00019921,2]
[346943317,1735409454178,-230.528561,0.00019922,2]
[346943318,1735409454188,-230.528561,0.00019922,2]
[346943319,1735409454198,-151.0,0.00019922,2]
[346943320,1735409454207,-828.666108,0.00019922,2]
[346943321,1735409454217,-828.666108,0.00019922,2]
[346943322,1735409454226,-151.0,0.00019922,2]
[346943323,1735409454236,-151.0,0.00019922,2]
[346943324,1735409454246,-621.733577,0.00019922,2]
[346943325,1735409454256,-750.068438,0.00019922,2]
[346943326,1735409454265,-161.124515,0.00019922,2]
[346943327,1735409454274,-621.733577,0.00019922,2]
[346943328,1735409454284,-750.068438,0.00019922,2]
[346943329,1735409454293,-161.124515,0.00019922,2]
[346943330,1735409454302,-196.742415,0.00019922,2]
[346943331,1735409454312,-196.742415,0.00019922,2]
[346943332,1735409454322,-162.756892,0.00019924,2]
[346943333,1735409454331,-162.756892,0.00019924,2]
[346943334,1735409454341,-151.0,0.00019924,2]
[346943335,1735409454355,-151.0,0.00019924,2]
[346943336,1735409454369,-449.431259,0.00019924,2]
[346943337,1735409454379,-449.431259,0.00019924,2]
[346943338,1735409454388,-151.0,0.00019924,2]
[346943339,1735409454397,-703.907684,0.00019924,2]
[346943340,1735409454406,-703.907684,0.00019924,2]
[346943341,1735409454416,-151.0,0.00019924,2]
[346943342,1735409454426,-664.2,0.00019924,2]
[346943343,1735409454444,-403.766938,0.00019924,2]
[346943344,1735409454453,-403.766938,0.00019924,2]
[346943345,1735409454463,-523.87,0.00019926,2]
[346943346,1735409454475,-307.3627231,0.00019973,2]
[346943347,1735409454484,-11135.33115785,0.0002,3]
[346943348,1735409454494,-151.0,0.0002,3]
[346943349,1735409454503,-151.0,0.0002,3]
[346943350,1735409454513,-3920.48,0.00020192,2]
[346943351,1735409454523,-3486.43,0.00020192,2]
[346943352,1735409454532,-237.6617238,0.00020195,2]
[346943353,1735409454541,-151.0,0.00020198,2]
[346943354,1735409454550,-151.0,0.00020198,2]
[346943355,1735409454560,-151.0,0.00020198,2]
[346943356,1735409454569,-664.2,0.00020198,2]
[346943357,1735409454579,-523.87,0.000202,2]
[346943358,1735409454588,-151.0,0.00020273,2]
[346943359,1735409454597,-151.0,0.00020273,2]
[346943360,1735409454613,-151.0,0.00020273,2]
[346943361,1735409454623,-499.0,0.00020273,2]
[346943362,1735409454632,-151.0,0.00020273,2]
[346943363,1735409454641,-151.0,0.00020399,2]
[346943364,1735409454651,-2000.0,0.000204,2]
[346943365,1735409454660,-246.538878,0.000204,2]
[346943366,1735409454670,-246.538878,0.000204,2]
[346943367,1735409454679,-1289.799582,0.000204,2]
[346943368,1735409454688,-1289.799582,0.000204,2]
[346943369,1735409454697,-3000.0,0.00020412,2]
[346943370,1735409454706,-198.53652378,0.00020415,2]
[346943371,1735409454716,-160.51294875,0.00020416,2]
[346943372,1735409454725,-400.0,0.00020447,2]
[346943373,1735409454734,-3920.48,0.00020466,2]
[346943374,1735409454743,-3486.43,0.00020466,2]
[346943375,1735409454753,-477.146927,0.00020469,2]
[346943376,1735409454763,-477.146927,0.00020469,2]
[346943377,1735409454772,-248.363047,0.00020469,2]
[346943378,1735409454782,-248.363047,0.00020469,2]
[346943379,1735409454791,-230.528561,0.0002047,2]
[346943380,1735409454800,-230.528561,0.0002047,2]
[346943381,1735409454809,-162.756892,0.00020472,2]
[346943382,1735409454818,-162.756892,0.00020472,2]
[346943383,1735409454827,-151.0,0.00020472,2]
[346943384,1735409454836,-151.0,0.00020472,2]
[346943385,1735409454846,-151.0,0.00020472,2]
[346943386,1735409454860,-151.0,0.00020472,2]
[346943387,1735409454869,-828.666108,0.00020472,2]
[346943388,1735409454879,-828.666108,0.00020472,2]
[346943389,1735409454888,-151.0,0.00020472,2]
[346943390,1735409454898,-151.0,0.00020472,2]
[346943391,1735409454907,-621.733577,0.00020472,2]
[346943392,1735409454917,-750.068438,0.00020472,2]
[346943393,1735409454927,-161.124515,0.00020472,2]
[346943394,1735409454937,-621.733577,0.00020472,2]
[346943395,1735409454946,-750.068438,0.00020472,2]
[346943396,1735409454955,-161.124515,0.00020472,2]
[346943397,1735409454965,-196.742415,0.00020472,2]
[346943398,1735409454977,-196.742415,0.00020472,2]
[346943399,1735409454987,-664.2,0.00020472,2]
[346943400,1735409454996,-523.87,0.00020473,2]
[346943401,1735409455007,-3043.59,0.000205,2]
[346943402,1735409455016,-7948.92,0.000205,2]
[346943403,1735409455026,-449.431259,0.000205,2]
[346943404,1735409455035,-449.431259,0.000205,2]
[346943405,1735409455047,-151.0,0.000205,2]
[346943406,1735409455056,-703.907684,0.000205,2]
[346943407,1735409455066,-703.907684,0.000205,2]
[346943408,1735409455075,-151.0,0.000205,2]
[346943409,1735409455085,-403.766938,0.000205,2]
[346943410,1735409455096,-403.766938,0.000205,2]
[346943411,1735409455109,-151.0,0.00020509,2]
[346943412,1735409455118,-151.0,0.0002051,2]
[346943413,1735409455127,-151.0,0.0002051,2]
[346943414,1735409455136,-151.0,0.0002051,2]
[346943415,1735409455145,-151.0,0.0002051,2]
[346943416,1735409455155,-151.0,0.0002051,2]
[346943417,1735409455164,-205.972044,0.0002051,2]
[346943418,1735409455173,-151.0,0.0002051,2]
[346943419,1735409455182,-151.0,0.0002051,2]
[346943420,1735409455192,-151.0,0.0002051,2]
[346943421,1735409455201,-162.756892,0.0002051,2]
[346943422,1735409455210,-162.756892,0.0002051,2]
[346943423,1735409455219,-162.756892,0.0002051,2]
[346943424,1735409455228,-162.756892,0.0002051,2]
[346943425,1735409455237,-162.756892,0.0002051,2]
[346943426,1735409455246,-162.756892,0.0002051,2]
[346943427,1735409455256,-162.756892,0.0002051,2]
[346943428,1735409455265,-162.756892,0.0002051,2]
[346943429,1735409455275,-162.756892,0.0002051,2]
[346943430,1735409455284,-162.756884,0.0002051,2]
[346943431,1735409455293,-151.0,0.0002051,2]
[346943432,1735409455302,-151.0,0.0002051,2]
[346943433,1735409455312,-151.0,0.0002051,2]
[346943434,1735409455321,-151.0,0.0002051,2]
[346943435,1735409455330,-151.0,0.0002051,2]
[346943436,1735409455339,-151.0,0.0002051,2]
[346943437,1735409455348,-195.729533,0.0002051,2]
[346943438,1735409455359,-151.0,0.0002051,2]
[346943439,1735409455368,-151.0,0.0002051,2]
[346943440,1735409455377,-151.0,0.0002051,2]
[346943441,1735409455387,-151.0,0.0002051,2]
[346943442,1735409455396,-151.0,0.0002051,2]
[346943443,1735409455405,-151.0,0.0002051,2]
[346943444,1735409455414,-174.274612,0.0002051,2]
[346943445,1735409455423,-151.0,0.0002051,2]
[346943446,1735409455436,-151.0,0.0002051,2]
[346943447,1735409455445,-292.602942,0.0002051,2]
[346943448,1735409455454,-230.528561,0.0002051,2]
[346943449,1735409455463,-230.528561,0.0002051,2]
[346943450,1735409455474,-230.528561,0.0002051,2]
[346943451,1735409455483,-230.528561,0.0002051,2]
[346943452,1735409455494,-230.528561,0.0002051,2]
[346943453,1735409455578,-230.528561,0.0002051,2]
[346943454,1735409455588,-230.528561,0.0002051,2]
[346943455,1735409455597,-230.528557,0.0002051,2]
[346943456,1735409455609,-151.0,0.0002051,2]
[346943457,1735409455618,-828.666108,0.0002051,2]
[346943458,1735409455627,-828.666108,0.0002051,2]
[346943459,1735409455636,-151.0,0.0002051,2]
[346943460,1735409455646,-151.0,0.0002051,2]
[346943461,1735409455655,-621.733577,0.0002051,2]
[346943462,1735409455664,-750.068438,0.0002051,2]
[346943463,1735409455674,-161.124515,0.0002051,2]
[346943464,1735409455683,-621.733577,0.0002051,2]
[346943465,1735409455692,-750.068438,0.0002051,2]
[346943466,1735409455701,-161.124515,0.0002051,2]
[346943467,1735409455710,-196.742415,0.0002051,2]
[346943468,1735409455720,-196.742415,0.0002051,2]
[346943469,1735409455729,-246.538878,0.0002051,2]
[346943470,1735409455738,-246.538878,0.0002051,2]
[346943471,1735409455747,-1289.799582,0.0002051,2]
[346943472,1735409455757,-1289.799582,0.0002051,2]
[346943473,1735409455766,-151.0,0.0002051,2]
[346943474,1735409455775,-151.0,0.0002051,2]
[346943475,1735409455784,-151.0,0.0002051,2]
[346943476,1735409455794,-151.0,0.00020512,2]
[346943477,1735409455804,-449.431259,0.00020512,2]
[346943478,1735409455814,-449.431259,0.00020512,2]
[346943479,1735409455823,-703.907684,0.00020512,2]
[346943480,1735409455833,-703.907684,0.00020512,2]
[346943481,1735409455843,-151.0,0.00020512,2]
[346943482,1735409455855,-403.766938,0.00020512,2]
[346943483,1735409455864,-403.766938,0.00020512,2]
[346943484,1735409455873,-477.146927,0.00020512,2]
[346943485,1735409455883,-477.146927,0.00020512,2]
[346943486,1735409455892,-248.363047,0.00020512,2]
[346943487,1735409455901,-248.363047,0.00020512,2]
[346943488,1735409455910,-151.0,0.00020515,2]
[346943489,1735409455919,-151.0,0.00020515,2]
[346943490,1735409455928,-828.666108,0.00020515,2]
[346943491,1735409455937,-828.666108,0.00020515,2]
[346943492,1735409455946,-828.666108,0.00020515,2]
[346943493,1735409455956,-828.6661,0.00020515,2]
[346943494,1735409455965,-151.0,0.00020515,2]
[346943495,1735409455974,-621.733577,0.00020515,2]
[346943496,1735409455983,-750.068438,0.00020515,2]
[346943497,1735409455992,-161.124515,0.00020515,2]
[346943498,1735409456002,-621.733573,0.00020515,2]
[346943499,1735409456011,-750.068438,0.00020515,2]
[346943500,1735409456020,-161.124519,0.00020515,2]
[346943501,1735409456030,-196.742415,0.00020515,2]
[346943502,1735409456040,-196.742415,0.00020515,2]
[346943503,1735409456049,-449.431259,0.00020515,2]
[346943504,1735409456058,-449.431255,0.00020515,2]
[346943505,1735409456068,-703.907684,0.00020515,2]
[346943506,1735409456077,-703.90768,0.00020515,2]
[346943507,1735409456087,-151.0,0.00020515,2]
[346943508,1735409456096,-403.766938,0.00020515,2]
[346943509,1735409456107,-403.766942,0.00020515,2]
[346943510,1735409456117,-477.146927,0.00020515,2]
[346943511,1735409456127,-477.146935,0.00020515,2]
[346943512,1735409456136,-248.363047,0.00020515,2]
[346943513,1735409456146,-248.363039,0.00020515,2]
[346943514,1735409456155,-280204.99784545,0.00020516,10]
[346943515,1735409456225,-10038.54350907,0.00020516,10]
[346943517,1735409689096,723.33,0.000255,30]
[346943539,1735410355144,-400.0,0.00013155,2]
[346943540,1735410355166,-400.0,0.00013288,2]
[346943541,1735410355187,-400.0,0.00013973,2]
[346943542,1735410355207,-174.01257794,0.00015431,2]
[346943543,1735410355229,-300.0,0.00015527,2]
[346943544,1735410355249,-500.0,0.00015528,2]
[346943545,1735410355272,-500.0,0.00015528,2]
[346943546,1735410355294,-247.90953208,0.00015528,2]
[346943548,1735410425298,-285.0912209,0.00015372,2]
[346943549,1735410427100,-14.9087791,0.00015372,2]
[346943550,1735410427123,-300.0,0.00015527,2]
[346943551,1735410427147,-252.09046792,0.00015528,2]
[346943552,1735410427170,-500.0,0.00015528,2]
[346943553,1735410427193,-254.56845477,0.00015528,2]
[346943554,1735410433096,-245.43154523,0.00015528,2]
[346943555,1735410433118,-500.0,0.00015528,2]
[346943556,1735410433145,-222.60419483,0.00015528,2]
[346943557,1735410434093,-277.39580517,0.00015528,2]
[346943558,1735410434118,-172.60419483,0.00015528,2]
[346943559,1735410452127,-682.96492311,0.00015373,2]
[346943572,1735410543836,2552.30163603,0.000255,30]
[346943654,1735410637843,-1087.71321043,0.00015372,2]
[346943655,1735410637853,-500.0,0.00015526,2]
[346943656,1735410637863,-500.0,0.00015526,2]
[346943657,1735410637874,-227.12892685,0.00015526,2]
[346943658,1735410637884,-1.18642505,0.00015526,2]
[346943659,1735410637925,-498.81357495,0.00015526,2]
[346943660,1735410637934,-500.0,0.00015526,2]
[346943661,1735410637943,-500.0,0.00015526,2]
[346943662,1735410637952,-500.0,0.00015526,2]
[346943663,1735410637962,-500.0,0.00015526,2]
[346943664,1735410637973,-500.0,0.00015526,2]
[346943665,1735410637982,-500.0,0.00015526,2]
[346943666,1735410637995,-181.38241068,0.00015526,2]
[346943667,1735410638006,-500.0,0.00015526,2]
[346943668,1735410638015,-500.0,0.00015526,2]
[346943669,1735410638024,-500.0,0.00015526,2]
[346943670,1735410638035,-500.0,0.00015526,2]
[346943672,1735410638044,-500.0,0.00015526,2]
[346943674,1735410638053,-500.0,0.00015526,2]
[346943676,1735410638063,-500.0,0.00015526,2]
[346943677,1735410638073,-500.0,0.00015526,2]
[346943678,1735410638084,-500.0,0.00015526,2]
[346943679,1735410638096,-500.0,0.00015526,2]
[346943680,1735410638107,-500.0,0.00015526,2]
[346943681,1735410638117,-500.0,0.00015526,2]
[346943682,1735410638126,-500.0,0.00015526,2]
[346943683,1735410638137,-500.0,0.00015526,2]
[346943684,1735410638149,-435.86039619,0.00015526,2]
[346943685,1735410638159,-500.0,0.00015526,2]
[346943686,1735410638168,-500.0,0.00015526,2]
[346943687,1735410638177,-500.0,0.00015526,2]
[346943688,1735410638187,-500.0,0.00015526,2]
[346943689,1735410638199,-500.0,0.00015526,2]
[346943690,1735410638209,-500.0,0.00015526,2]
[346943691,1735410638219,-500.0,0.00015526,2]
[346943692,1735410638229,-500.0,0.00015526,2]
[346943693,1735410638239,-500.0,0.00015526,2]
[346943694,1735410638248,-500.0,0.00015526,2]
[346943695,1735410638260,-298.66325796,0.00015526,2]
[346943696,1735410638271,-500.0,0.00015526,2]
[346943697,1735410638281,-500.0,0.00015526,2]
[346943698,1735410638291,-142.64672522,0.00015526,2]
[346943699,1735410638306,-357.35327478,0.00015526,2]
[346943700,1735410638316,-500.0,0.00015527,2]
[346943701,1735410638325,-500.0,0.00015527,2]
[346943702,1735410638335,-500.0,0.00015527,2]
[346943703,1735410638346,-500.0,0.00015527,2]
[346943704,1735410638356,-327.39580517,0.00015527,2]
[346943705,1735410638366,-500.0,0.00015527,2]
[346943706,1735410638377,-500.0,0.00015527,2]
[346943707,1735410638386,-500.0,0.00015527,2]
[346943708,1735410638395,-500.0,0.00015527,2]
[346943709,1735410638406,-602.81,0.00015527,2]
[346943710,1735410638415,-500.0,0.00015527,2]
[346943711,1735410638424,-520.94092734,0.00015527,2]
[346943712,1735410638435,-500.0,0.00015527,2]
[346943713,1735410638444,-500.0,0.00015527,2]
[346943714,1735410638454,-203.96532083,0.00015527,2]
[346943715,1735410638465,-296.03467917,0.00015527,2]
[346943716,1735410638475,-500.0,0.00015527,2]
[346943717,1735410638486,-500.0,0.00015527,2]
[346943718,1735410638496,-500.0,0.00015528,2]
[346943719,1735410638506,-500.0,0.00015528,2]
[346943720,1735410638515,-500.0,0.00015528,2]
[346943721,1735410638526,-500.0,0.00015528,2]
[346943722,1735410638535,-500.0,0.00015528,2]
[346943723,1735410638544,-500.0,0.00015528,2]
[346943724,1735410638554,-1129.27,0.00015528,2]
[346943725,1735410638563,-500.0,0.00015528,2]
[346943726,1735410638572,-500.0,0.00015528,2]
[346943727,1735410638582,-500.0,0.00015528,2]
[346943728,1735410638591,-575.6,0.00015528,2]
[346943729,1735410638600,-500.52,0.00015528,2]
[346943730,1735410638609,-500.0,0.00015528,2]
[346943731,1735410638618,-334.93584663,0.00015528,2]
[346943732,1735410638630,-165.06415337,0.00015528,2]
[346943733,1735410638639,-500.0,0.00015528,2]
[346943734,1735410638648,-500.0,0.00015528,2]
[346943735,1735410638657,-500.0,0.00015528,2]
[346943736,1735410638666,-500.0,0.00015528,2]
[346943737,1735410638675,-647.38,0.00015528,2]
[346943738,1735410638684,-500.0,0.00015528,2]
[346943739,1735410638694,-500.0,0.00015528,2]
[346943740,1735410638703,-500.0,0.00015528,2]
[346943741,1735410638712,-500.0,0.00015528,2]
[346943742,1735410638721,-500.0,0.00015528,2]
[346943743,1735410638730,-500.0,0.00015528,2]
[346943744,1735410638739,-500.0,0.00015528,2]
[346943745,1735410638748,-2120.87,0.00015528,2]
[346943746,1735410638756,-500.0,0.00015528,2]
[346943747,1735410638765,-500.0,0.00015528,2]
[346943748,1735410638774,-264.04563125,0.00015528,2]
[346943749,1735410638783,-313.75128717,0.00015528,2]
[346943750,1735410638792,-500.0,0.00015528,2]
[346943751,1735410638801,-500.0,0.00015529,2]
[346943752,1735410638811,-500.0,0.00015529,2]
[346943753,1735410638824,-500.0,0.00015529,2]
[346943754,1735410638834,-500.0,0.00015529,2]
[346943755,1735410638843,-518.84,0.00015529,2]
[346943756,1735410638852,-500.0,0.00015529,2]
[346943757,1735410638862,-500.0,0.00015529,2]
[346943758,1735410638871,-500.0,0.00015529,2]
[346943759,1735410638880,-228.67,0.00015529,2]
[346943760,1735410638890,-500.0,0.00015529,2]
[346943761,1735410638899,-500.0,0.00015529,2]
[346943762,1735410638909,-500.0,0.00015529,2]
[346943763,1735410638918,-500.0,0.00015529,2]
[346943764,1735410638927,-500.0,0.00015529,2]
[346943765,1735410638936,-500.0,0.00015529,2]
[346943766,1735410638945,-500.0,0.00015529,2]
[346943767,1735410638954,-500.0,0.00015529,2]
[346943768,1735410638963,-500.0,0.00015529,2]
[346943769,1735410638972,-500.0,0.00015529,2]
[346943770,1735410638983,-500.0,0.00015529,2]
[346943771,1735410638992,-500.0,0.00015529,2]
[346943772,1735410639001,-500.0,0.00015529,2]
[346943773,1735410639010,-500.0,0.00015529,2]
[346943774,1735410639019,-500.0,0.00015529,2]
[346943775,1735410639029,-574.12,0.00015529,2]
[346943776,1735410639038,-500.0,0.00015529,2]
[346943777,1735410639047,-500.0,0.00015529,2]
[346943778,1735410639057,-500.0,0.00015529,2]
[346943779,1735410639067,-500.0,0.00015529,2]
[346943780,1735410639076,-500.0,0.00015529,2]
[346943781,1735410639086,-500.0,0.00015529,2]
[346943782,1735410639095,-560.80076146,0.00015529,2]
[346943783,1735410639105,-500.0,0.00015529,2]
[346943784,1735410639114,-500.0,0.00015529,2]
[346943785,1735410639124,-500.0,0.00015529,2]
[346943786,1735410639133,-500.0,0.00015529,2]
[346943787,1735410639143,-500.0,0.00015529,2]
[346943788,1735410639152,-500.0,0.00015529,2]
[346943789,1735410639162,-500.0,0.00015529,2]
[346943790,1735410639171,-567.97,0.00015529,2]
[346943791,1735410639180,-500.0,0.00015529,2]
[346943792,1735410639190,-500.0,0.00015529,2]
[346943793,1735410639199,-502.38239579,0.00015529,2]
[346943794,1735410639209,-500.0,0.00015529,2]
[346943795,1735410639218,-500.0,0.00015529,2]
[346943796,1735410639228,-500.0,0.00015529,2]
[346943797,1735410639237,-403.25696386,0.00015529,2]
[346943798,1735410639248,-500.0,0.00015529,2]
[346943799,1735410639258,-500.0,0.00015529,2]
[346943800,1735410639267,-500.0,0.00015529,2]
[346943801,1735410639277,-527.38,0.00015529,2]
[346943802,1735410639286,-525.48,0.00015529,2]
[346943803,1735410639296,-500.0,0.00015529,2]
[346943804,1735410639305,-500.0,0.00015529,2]
[346943805,1735410639317,-500.0,0.00015529,2]
[346943806,1735410639326,-500.0,0.00015529,2]
[346943807,1735410639336,-500.0,0.00015529,2]
[346943808,1735410639345,-500.0,0.00015529,2]
[346943809,1735410639354,-500.0,0.00015529,2]
[346943810,1735410639364,-500.0,0.00015529,2]
[346943811,1735410639373,-536.36,0.00015529,2]
[346943812,1735410639383,-500.0,0.00015529,2]
[346943813,1735410639392,-500.0,0.00015529,2]
[346943814,1735410639402,-500.0,0.00015529,2]
[346943815,1735410639411,-500.0,0.00015529,2]
[346943816,1735410639421,-375.64965632,0.00015529,2]
[346943817,1735410639430,-500.0,0.00015529,2]
[346943818,1735410639439,-500.0,0.00015529,2]
[346943819,1735410639448,-500.0,0.00015529,2]
[346943820,1735410639458,-500.0,0.00015529,2]
[346943821,1735410639467,-500.0,0.00015529,2]
[346943822,1735410639477,-508.02368412,0.00015529,2]
[346943823,1735410639486,-500.0,0.00015529,2]
[346943824,1735410639496,-500.0,0.00015529,2]
[346943825,1735410639505,-500.0,0.00015529,2]
[346943826,1735410639514,-500.0,0.00015529,2]
[346943827,1735410639524,-500.0,0.00015529,2]
[346943828,1735410639533,-500.0,0.00015529,2]
[346943829,1735410639543,-500.0,0.00015529,2]
[346943830,1735410639552,-500.0,0.00015529,2]
[346943831,1735410639562,-500.0,0.00015529,2]
[346943832,1735410639573,-500.0,0.00015529,2]
[346943833,1735410639583,-500.0,0.00015529,2]
[346943834,1735410639592,-500.0,0.00015529,2]
[346943835,1735410639601,-500.0,0.00015529,2]
[346943839,1735410639692,-544.74,0.00015529,2]
[346943841,1735410639701,-500.0,0.00015529,2]
[346943842,1735410639711,-500.0,0.00015529,2]
[346943843,1735410639720,-500.0,0.00015529,2]
[346943844,1735410639730,-500.0,0.00015529,2]
[346943845,1735410639739,-612.81,0.00015529,2]
[346943846,1735410639748,-500.0,0.00015529,2]
[346943847,1735410639758,-500.0,0.00015529,2]
[346943848,1735410639767,-500.0,0.00015529,2]
[346943850,1735410639776,-500.0,0.00015529,2]
[346943852,1735410639786,-500.0,0.00015529,2]
[346943854,1735410639795,-551.52055496,0.00015529,2]
[346943855,1735410639805,-500.0,0.00015529,2]
[346943857,1735410639817,-500.0,0.00015529,2]
[346943859,1735410639827,-500.0,0.00015529,2]
[346943860,1735410639836,-500.0,0.00015529,2]
[346943861,1735410639846,-500.0,0.00015529,2]
[346943862,1735410639855,-500.0,0.00015529,2]
[346943863,1735410639864,-500.0,0.00015529,2]
[346943864,1735410639874,-500.0,0.00015529,2]
[346943865,1735410639883,-500.0,0.00015529,2]
[346943866,1735410639893,-500.0,0.0001553,2]
[346943867,1735410639903,-500.0,0.0001553,2]
[346943868,1735410639912,-500.0,0.0001553,2]
[346943869,1735410639921,-500.0,0.0001553,2]
[346943870,1735410639931,-514.16417935,0.0001553,2]
[346943871,1735410639940,-500.0,0.0001553,2]
[346943872,1735410639949,-500.0,0.0001553,2]
[346943873,1735410639959,-504.4706597,0.0001553,2]